bitfinex/quotes_SOLUSD_20241031
["timestamp","ask_amount","ask_price","bid_price","bid_amount"]
[1730357232880,10.18472998,173.88,173.83,10.18472998]
[1730357233195,10.18472998,173.87,173.82,25.78632998]
[1730357233363,10.18472998,173.88,173.83,10.18472998]
[1730357233788,5.7514,173.87,173.83,10.18472998]
[1730357235093,10.18472998,173.87,173.82,25.78632998]
[1730357235395,10.18472998,173.87,173.82,10.18472998]
[1730357236688,5.7517,173.86,173.82,10.18472998]
[1730357238176,5.7517,173.86,173.83,10.18472998]
[1730357238573,10.18472998,173.88,173.83,10.18472998]
[1730357238766,5.7514,173.87,173.83,10.18472998]
[1730357239497,15.93612998,173.87,173.82,10.18472998]
[1730357240283,10.18472998,173.95,173.86,10.18472998]
[1730357240603,10.18472998,173.95,173.84,15.3312]
[1730357240604,10.18472998,173.95,173.9,10.18472998]
[1730357241096,10.18472998,173.93,173.88,10.18472998]
[1730357242097,15.93442998,173.92,173.87,10.18472998]
[1730357242879,5.7497,173.92,173.88,10.18472998]
[1730357246303,10.18472998,173.94,173.88,10.18472998]
[1730357246603,10.18472998,173.93,173.88,10.18472998]
[1730357246908,10.18472998,173.91,173.86,10.18472998]
[1730357247807,10.18472998,173.9,173.85,10.18472998]
[1730357248181,10.18472998,173.91,173.86,10.18472998]
[1730357248599,5.7504,173.9,173.86,10.18472998]
[1730357248792,5.7504,173.9,173.85,10.18472998]
[1730357249210,15.93512998,173.9,173.85,10.18472998]
[1730357249406,15.93512998,173.9,173.84,25.51592998]
[1730357251607,15.93512998,173.9,173.85,10.18472998]
[1730357251984,10.18472998,173.91,173.85,10.18472998]
[1730357252409,5.7497,173.92,173.84,25.51592998]
[1730357252410,10.18472998,173.9,173.84,25.51592998]
[1730357254105,5.7507,173.89,173.84,25.51592998]
[1730357254809,15.93542998,173.89,173.84,25.51592998]
[1730357255313,10.18472998,173.93,173.87,10.18472998]
[1730357255492,10.18472998,173.92,173.86,10.18472998]
[1730357256200,5.7501,173.91,173.86,10.18472998]
[1730357256701,15.93482998,173.91,173.85,10.18472998]
[1730357257302,5.7501,173.91,173.86,10.18472998]
[1730357257805,15.93482998,173.91,173.86,10.18472998]
[1730357258608,10.18472998,173.92,173.86,10.18472998]
[1730357258920,10.18472998,173.91,173.86,10.18472998]
[1730357259787,10.18472998,173.91,173.85,10.18472998]
[1730357259987,10.18472998,173.9,173.84,25.51592998]
[1730357260409,10.18472998,173.91,173.85,10.18472998]
[1730357260813,5.7504,173.9,173.85,10.18472998]
[1730357261909,15.93512998,173.9,173.84,25.51592998]
[1730357262208,10.18472998,173.88,173.82,10.18472998]
[1730357262613,10.18472998,173.89,173.84,10.18472998]
[1730357262795,5.751,173.88,173.84,10.18472998]
[1730357263213,5.751,173.88,173.83,10.18472998]
[1730357263716,10.18472998,173.88,173.82,10.18472998]
[1730357266117,5.7514,173.87,173.82,10.18472998]
[1730357268196,10.18472998,173.89,173.83,10.18472998]
[1730357269591,5.751,173.88,173.83,10.18472998]
[1730357272917,10.18472998,173.88,173.82,10.18472998]
[1730357274105,5.7514,173.87,173.83,10.18472998]
[1730357277126,10.18472998,173.89,173.84,10.18472998]
[1730357277436,5.751,173.89,173.85,10.18472998]
[1730357277806,5.751,173.89,173.84,10.18472998]
[1730357278315,10.18472998,173.89,173.84,10.18472998]
[1730357279904,10.18472998,173.9,173.84,10.18472998]
[1730357280101,5.7507,173.89,173.84,10.18472998]
[1730357281727,5.7507,173.89,173.85,10.18472998]
[1730357282434,5.7507,173.89,173.83,6.00697969]
[1730357282435,5.7507,173.89,173.84,10.18472998]
[1730357282734,5.7507,173.89,173.82,5.753]
[1730357282735,15.93542998,173.89,173.83,10.18472998]
[1730357282909,10.18472998,173.87,173.82,10.18472998]
[1730357283615,10.18472998,173.87,173.81,10.77928778]
[1730357283817,10.18472998,173.87,173.82,10.18472998]
[1730357284011,5.7517,173.86,173.82,10.18472998]
[1730357285935,15.93642998,173.86,173.81,16.78801031]
[1730357286135,5.7517,173.86,173.82,10.18472998]
[1730357287339,10.18472998,173.87,173.82,10.18472998]
[1730357289426,5.7517,173.86,173.82,10.18472998]
[1730357293150,15.93642998,173.86,173.81,16.78801031]
[1730357293829,10.18472998,173.83,173.81,6.60328033]
[1730357294026,10.18472998,173.85,173.81,6.60328033]
[1730357294532,10.18472998,173.84,173.81,6.60328033]
[1730357294731,10.18472998,173.85,173.81,6.60328033]
[1730357295443,5.7524,173.84,173.81,6.60328033]
[1730357295760,5.7524,173.84,173.81,16.78801031]
[1730357295923,5.7524,173.84,173.81,6.60328033]
[1730357296248,15.93712998,173.84,173.81,6.60328033]
[1730357296450,10.18472998,173.83,173.81,6.60328033]
[1730357297227,15.93752998,173.83,173.81,6.60328033]
[1730357300139,5.7528,173.83,173.81,6.60328033]
[1730357309963,10.18472998,173.82,173.81,6.60328033]
[1730357310159,15.93752998,173.83,173.81,6.60328033]
[1730357317167,10.18472998,173.82,173.81,6.60328033]
[1730357317878,15.93752998,173.83,173.81,6.60328033]
[1730357319997,10.18472998,173.82,173.81,6.60328033]
[1730357320177,5.753,173.82,173.81,6.60328033]
[1730357324980,15.93772998,173.82,173.81,6.60328033]
[1730357325885,5.753,173.82,173.81,6.60328033]
[1730357326473,5.753,173.82,173.81,0.5945578]
[1730357335091,5.753,173.82,173.81,26.60888778]
[1730357336298,14.3793,173.86,173.81,26.60888778]
[1730357336593,14.3793,173.86,173.85,10.18472998]
[1730357338178,14.3793,173.86,173.81,16.4241578]
[1730357338179,14.3793,173.86,173.84,10.18472998]
[1730357339582,14.3793,173.86,173.85,10.18472998]
[1730357342984,14.3793,173.86,173.84,10.18472998]
[1730357343192,14.3793,173.86,173.85,10.18472998]
[1730357345279,14.3793,173.86,173.85,32.77831998]
[1730357346095,5.751,173.88,173.87,10.18472998]
[1730357346288,28.7525,173.9,173.87,10.41021998]
[1730357346498,28.7525,173.9,173.89,10.18472998]
[1730357347395,28.7525,173.9,173.89,10.41021998]
[1730357348687,28.7525,173.9,173.89,10.31021998]
[1730357348886,28.7525,173.9,173.89,10.41021998]
[1730357349678,28.7525,173.9,173.89,10.53570998]
[1730357350604,28.7525,173.9,173.89,27.26130998]
[1730357350803,28.7525,173.9,173.89,33.88710998]
[1730357351700,5.4193,173.9,173.89,33.88710998]
[1730357351901,28.745,173.95,173.94,0.1]
[1730357352206,28.745,173.95,173.94,10.18472998]
[1730357353114,28.745,173.95,173.94,15.93382998]
[1730357354606,28.745,173.95,173.94,16.15931998]
[1730357355408,28.745,173.95,173.94,16.28480998]
[1730357355999,28.745,173.95,173.94,31.68850998]
[1730357356607,28.745,173.95,173.94,31.78850998]
[1730357358086,28.745,173.95,173.94,31.68850998]
[1730357359497,28.745,173.95,173.94,31.46301998]
[1730357359809,28.745,173.95,173.94,16.15931998]
[1730357360213,28.745,173.95,173.94,15.93382998]
[1730357360794,28.745,173.95,173.94,16.05931998]
[1730357360990,28.745,173.95,173.94,16.15931998]
[1730357365811,28.745,173.95,173.94,16.28480998]
[1730357366414,28.745,173.95,173.94,16.38480998]
[1730357366594,14.3693,173.99,173.98,10.41021998]
[1730357367295,14.3693,173.99,173.98,10.53570998]
[1730357367634,14.3693,173.99,173.98,10.63570998]
[1730357367803,14.3693,173.99,173.98,16.38340998]
[1730357369301,28.7356,174.0,173.99,10.63570998]
[1730357369508,5.7448,174.07,174.02,0.1]
[1730357369692,5.7448,174.07,174.06,10.18472998]
[1730357371007,5.7448,174.07,174.03,10.18472998]
[1730357372527,5.7448,174.07,174.04,10.18472998]
[1730357373431,5.7448,174.07,174.06,10.18472998]
[1730357373595,5.7448,174.07,174.05,10.18472998]
[1730357375515,5.7448,174.07,174.06,10.18472998]
[1730357376612,14.3582,174.12,174.06,10.18472998]
[1730357376613,24.54292998,174.12,174.06,10.18472998]
[1730357376824,24.54292998,174.12,174.07,10.18472998]
[1730357377826,30.28602998,174.12,174.07,10.18472998]
[1730357378520,20.1013,174.12,174.09,10.18472998]
[1730357379026,20.1013,174.12,174.1,10.18472998]
[1730357381508,20.1013,174.12,174.09,15.92872998]
[1730357381899,20.1013,174.12,174.09,5.744]
[1730357382099,20.1013,174.12,174.09,15.92872998]
[1730357384625,20.1013,174.12,174.11,10.31021998]
[1730357384995,20.1013,174.12,174.11,10.18472998]
[1730357385605,20.1013,174.12,174.11,10.31021998]
[1730357385924,20.1013,174.12,174.11,10.53570998]
[1730357386317,20.1013,174.12,174.11,16.27910998]
[1730357386702,14.3582,174.12,174.11,16.27910998]
[1730357388002,14.3582,174.12,174.11,16.37910998]
[1730357389407,34.446,174.19,174.17,0.35098]
[1730357389702,34.446,174.19,174.17,10.53570998]
[1730357389901,34.446,174.19,174.17,10.31021998]
[1730357390118,34.446,174.19,174.17,0.12549]
[1730357390321,34.446,174.19,174.17,10.31021998]
[1730357392131,34.446,174.19,174.17,0.12549]
[1730357392510,44.63072998,174.19,174.14,10.18472998]
[1730357393126,44.63072998,174.19,174.15,0.12549]
[1730357395326,34.446,174.19,174.15,10.31021998]
[1730357396528,34.446,174.19,174.15,0.12549]
[1730357397033,34.446,174.19,174.15,10.31021998]
[1730357397213,34.446,174.19,174.17,0.12549]
[1730357397411,34.446,174.19,174.17,10.31021998]
[1730357397633,34.446,174.19,174.17,10.63570998]
[1730357398015,28.705,174.19,174.17,10.63570998]
[1730357398630,28.705,174.19,174.17,25.89440998]
[1730357399137,28.705,174.19,174.17,31.63590998]
[1730357399333,28.705,174.19,174.18,0.45098]
[1730357399522,28.705,174.19,174.18,10.63570998]
[1730357401035,28.705,174.19,174.18,16.37680998]
[1730357403042,28.705,174.19,174.18,16.27680998]
[1730357403418,28.705,174.19,174.18,15.92582998]
[1730357403946,28.705,174.19,174.18,16.15131998]
[1730357405256,28.705,174.19,174.18,16.27680998]
[1730357406137,28.705,174.19,174.18,16.17680998]
[1730357406345,28.705,174.19,174.18,16.05131998]
[1730357406721,28.705,174.19,174.18,10.31021998]
[1730357407317,28.705,174.19,174.18,16.05131998]
[1730357407735,28.705,174.19,174.18,16.27680998]
[1730357407947,28.705,174.19,174.18,16.37680998]
[1730357410648,28.705,174.19,174.18,22.21323544]
[1730357417944,57.4032,174.21,174.2,0.32549]
[1730357418254,28.6998,174.22,174.21,0.35098]
[1730357418419,28.6998,174.22,174.21,32.39329088]
[1730357419036,28.6998,174.22,174.21,32.49329088]
[1730357419344,28.26252308,174.22,174.21,38.23339088]
[1730357420642,14.3465,174.26,174.25,0.35098]
[1730357420849,14.3465,174.26,174.25,16.37213544]
[1730357421741,14.3465,174.26,174.25,22.11093544]
[1730357422129,14.3465,174.26,174.25,22.21093544]
[1730357423751,14.3465,174.26,174.25,16.14664544]
[1730357423952,14.3465,174.26,174.25,16.02115544]
[1730357424461,14.3465,174.26,174.25,16.14664544]
[1730357424761,14.3465,174.26,174.25,21.88544544]
[1730357425457,14.3465,174.26,174.25,16.02115544]
[1730357425639,14.3465,174.26,174.24,30.36875544]
[1730357426156,14.3465,174.26,174.25,16.02115544]
[1730357426363,14.3465,174.26,174.25,16.14664544]
[1730357426755,14.3465,174.26,174.25,39.92352944]
[1730357427443,14.3465,174.26,174.25,45.88781944]
[1730357427662,14.3465,174.26,174.25,45.66232944]
[1730357427836,14.3465,174.26,174.24,23.776884]
[1730357428039,14.3465,174.26,174.25,40.02352944]
[1730357428235,14.3465,174.26,174.25,23.776884]
[1730357428456,14.3465,174.26,174.24,23.776884]
[1730357428846,70.0,174.2,174.15,5.99266353]
[1730357429050,32.04231088,174.16,174.06,5.745]
[1730357429351,16.02115544,174.1,174.05,20.1083]
[1730357429659,16.02115544,174.1,174.05,36.12945544]
[1730357429854,21.76485544,174.11,174.05,36.22945544]
[1730357430059,21.76485544,174.11,174.05,20.2083]
[1730357430251,16.02115544,174.1,174.05,20.1083]
[1730357430441,16.02115544,174.09,174.05,20.1083]
[1730357431473,16.02115544,174.1,174.05,14.363]
[1730357431841,16.02115544,174.09,174.06,0.12549]
[1730357433661,16.02115544,174.07,174.05,14.363]
[1730357433870,16.02115544,174.06,174.02,5.7464]
[1730357434067,16.02115544,174.05,174.03,0.12549]
[1730357434572,16.02115544,174.04,174.02,5.7464]
[1730357435169,16.02115544,174.05,174.02,5.7464]
[1730357436166,16.02115544,174.06,174.02,5.7464]
[1730357437267,16.02115544,174.07,174.03,0.12549]
[1730357437470,16.02115544,174.07,174.02,36.13365544]
[1730357437471,16.02115544,174.06,174.02,20.1125]
[1730357437677,16.02115544,174.05,174.02,20.1125]
[1730357437844,16.02115544,174.06,174.02,20.1125]
[1730357438171,16.02115544,174.05,174.02,14.3661]
[1730357438665,16.02115544,174.04,174.02,14.3661]
[1730357438864,16.02115544,174.05,174.02,14.3661]
[1730357439063,16.02115544,174.04,174.01,11.74569715]
[1730357440078,16.02115544,174.05,174.01,11.74569715]
[1730357440258,16.02115544,174.06,174.01,42.13375259]
[1730357440769,16.02115544,174.06,174.02,0.12549]
[1730357441171,16.02115544,174.05,174.01,26.11259715]
[1730357441563,16.02115544,174.05,174.01,26.11269715]
[1730357442072,21.76645544,174.06,174.02,0.12549]
[1730357442681,5.7453,174.06,174.02,36.25894544]
[1730357443161,5.7453,174.06,174.03,16.02115544]
[1730357443369,5.7453,174.06,174.05,0.12549]
[1730357443764,5.7453,174.06,174.05,5.87089]
[1730357444980,5.7453,174.06,174.05,21.89204544]
[1730357445282,16.6331,174.1,174.05,36.38113544]
[1730357445459,32.65425544,174.1,174.05,36.13015544]
[1730357445974,32.65425544,174.1,174.06,0.12549]
[1730357446465,36.12285544,174.12,174.08,0.12549]
[1730357446772,20.1017,174.12,174.08,16.14664544]
[1730357447171,20.1017,174.12,174.09,16.02115544]
[1730357447771,20.1017,174.12,174.1,5.7438]
[1730357448472,36.12285544,174.12,174.08,5.86969]
[1730357449366,20.1017,174.12,174.08,5.86969]
[1730357449570,20.1017,174.12,174.08,21.89084544]
[1730357450171,20.1017,174.12,174.09,16.02115544]
[1730357450573,20.1017,174.12,174.0,17.84355517]
[1730357450574,36.12285544,174.12,174.07,16.02115544]
[1730357450777,16.02115544,174.11,174.05,30.38465544]
[1730357450979,16.02115544,174.11,174.07,0.12549]
[1730357451187,36.12285544,174.12,174.07,16.14664544]
[1730357451568,20.1017,174.12,174.07,16.14664544]
[1730357451767,20.1017,174.12,174.08,5.7444]
[1730357452385,20.1017,174.12,174.09,0.12549]
[1730357452569,20.1017,174.12,174.08,20.1056]
[1730357453073,36.12285544,174.12,174.08,20.1056]
[1730357453274,20.1017,174.12,174.08,36.12675544]
[1730357456086,20.1017,174.12,174.08,14.3612]
[1730357456300,16.02115544,174.1,174.08,14.3612]
[1730357457285,16.02115544,174.09,174.05,5.7452]
[1730357458294,16.02115544,174.1,174.05,5.7452]
[1730357458595,16.02115544,174.1,174.05,20.1088]
[1730357459589,5.7435,174.11,174.04,22.01898042]
[1730357459590,5.7435,174.11,174.08,16.02115544]
[1730357459967,5.7435,174.11,174.07,36.12795544]
[1730357460173,5.7435,174.11,174.08,0.12549]
[1730357460378,5.7435,174.11,174.08,16.14664544]
[1730357460585,16.02115544,174.1,174.07,14.362]
[1730357460901,16.02115544,174.08,174.04,5.99782498]
[1730357461073,16.02115544,174.05,174.04,11.74362498]
[1730357461398,16.02115544,174.07,174.04,5.7458]
[1730357462605,16.02115544,174.06,174.02,11.74542992]
[1730357463100,16.02115544,174.05,174.02,11.74542992]
[1730357463688,16.02115544,174.06,174.02,11.74542992]
[1730357463907,16.02115544,174.07,174.02,11.74542992]
[1730357465395,16.02115544,174.07,174.02,27.76658536]
[1730357465700,16.02115544,174.07,174.02,42.13268536]
[1730357466001,16.02115544,174.07,174.03,0.12549]
[1730357466502,16.02115544,174.07,174.03,5.87159]
[1730357466678,16.02115544,174.06,174.03,5.7461]
[1730357467497,16.02115544,174.06,174.02,20.36542992]
[1730357467885,16.02115544,174.06,174.02,26.11182992]
[1730357469591,16.02115544,174.05,174.02,5.99932992]
[1730357470080,16.02115544,174.05,174.0,5.7468]
[1730357470493,16.02115544,174.04,174.0,5.7468]
[1730357471086,16.02115544,174.02,173.99,20.36823214]
[1730357471298,16.02115544,174.0,173.99,5.99983214]
[1730357471599,16.02115544,174.0,173.96,5.7482]
[1730357473292,16.02115544,174.01,173.96,5.7482]
[1730357473502,16.02115544,174.01,173.96,21.76935544]
[1730357477483,16.02115544,174.0,173.96,20.1193]
[1730357478609,21.76795544,174.01,173.96,36.14045544]
[1730357478816,16.02115544,174.0,173.95,6.00103728]
[1730357479097,16.02115544,174.0,173.95,11.74973728]
[1730357479306,16.02115544,174.0,173.95,5.7487]
[1730357479984,16.02115544,174.0,173.95,36.14175544]
[1730357481386,16.02115544,173.98,173.93,21.77025544]
[1730357483510,16.02115544,173.98,173.94,16.02115544]
[1730357483706,21.76855544,173.99,173.94,21.77015544]
[1730357484730,16.02115544,173.98,173.93,21.77055544]
[1730357485021,16.02115544,173.94,173.92,6.00177947]
[1730357485195,16.02115544,173.96,173.91,21.77085544]
[1730357485397,16.02115544,173.96,173.91,36.14605544]
[1730357485590,16.02115544,173.95,173.92,6.00336445]
[1730357486103,16.02115544,173.95,173.91,20.1249]
[1730357486406,16.02115544,173.94,173.91,14.3752]
[1730357486588,5.7474,173.99,173.85,0.2]
[1730357486589,10.29258912,173.92,173.86,10.29258912]
[1730357486792,10.29258912,173.92,173.89,6.00409525]
[1730357487007,25.97158912,173.93,173.88,10.29258912]
[1730357487310,25.97158912,173.93,173.89,6.00411863]
[1730357487497,10.29258912,173.91,173.89,6.00411863]
[1730357487895,10.29258912,173.91,173.87,20.1299]
[1730357488500,16.0893144,173.9,173.87,20.1299]
[1730357489597,16.0893144,173.89,173.87,14.3785]
[1730357490192,16.0893144,173.9,173.87,14.3785]
[1730357490394,16.0893144,173.91,173.87,20.1299]
[1730357490708,21.8391144,173.92,173.87,36.2192144]
[1730357491296,16.0893144,173.91,173.87,20.1299]
[1730357491715,16.0893144,173.9,173.87,20.1299]
[1730357492011,16.0893144,173.9,173.87,14.3785]
[1730357492601,16.0893144,173.89,173.87,14.3785]
[1730357493117,16.0893144,173.88,173.87,14.3785]
[1730357493496,16.0893144,173.88,173.86,6.0045728]
[1730357493801,16.0893144,173.87,173.82,16.94654499]
[1730357494108,16.0893144,173.86,173.83,6.00565174]
[1730357494418,16.0893144,173.85,173.82,0.85723059]
[1730357496021,16.0893144,173.86,173.82,0.85723059]
[1730357496419,5.7511,173.88,173.84,16.0893144]
[1730357497527,5.7511,173.88,173.85,30.4695144]
[1730357498907,5.7511,173.88,173.85,36.2215144]
[1730357499903,5.7511,173.88,173.85,20.1322]
[1730357500105,5.7511,173.88,173.84,16.0893144]
[1730357500298,21.8404144,173.88,173.83,21.9674044]
[1730357500517,5.7511,173.88,173.84,16.0893144]
[1730357501614,5.7511,173.88,173.85,5.752]
[1730357502608,21.8404144,173.88,173.83,36.2238144]
[1730357502806,16.0893144,173.87,173.83,20.1345]
[1730357503434,21.8404144,173.88,173.83,36.2238144]
[1730357503726,16.0893144,173.87,173.83,20.1345]
[1730357504429,21.8404144,173.88,173.83,36.2238144]
[1730357504631,21.8404144,173.88,173.83,20.1345]
[1730357506033,21.8404144,173.88,173.83,36.2238144]
[1730357508017,5.7511,173.88,173.85,5.752]
[1730357508521,5.7511,173.88,173.85,20.1322]
[1730357510531,14.3744,173.92,173.87,10.29550135]
[1730357510711,14.3744,173.92,173.88,10.29550135]
[1730357511713,14.3744,173.92,173.87,10.29550135]
[1730357512517,14.3744,173.92,173.87,16.04660135]
[1730357512929,14.3744,173.92,173.87,30.42510135]
[1730357514919,24.66990135,173.92,173.87,30.42510135]
[1730357520239,14.3744,173.92,173.88,10.29550135]
[1730357520452,14.3744,173.92,173.89,30.42310135]
[1730357520755,14.3744,173.92,173.89,20.1276]
[1730357522041,14.3744,173.92,173.89,24.67240135]
[1730357523444,14.3744,173.92,173.89,30.42310135]
[1730357524054,14.3744,173.92,173.91,10.42099135]
[1730357525243,14.3744,173.92,173.91,5.7501]
[1730357525448,14.3744,173.92,173.89,24.67240135]
[1730357525624,14.3744,173.92,173.89,30.42280135]
[1730357527017,14.3744,173.92,173.9,10.29550135]
[1730357528829,14.3744,173.92,173.9,16.04580135]
[1730357529031,14.3744,173.92,173.9,5.7503]
[1730357530531,14.3744,173.92,173.89,24.67240135]
[1730357530733,14.3744,173.92,173.89,30.42310135]
[1730357531448,14.3744,173.92,173.9,10.29550135]
[1730357532824,14.3744,173.92,173.9,30.42160135]
[1730357533650,14.3744,173.92,173.91,10.29550135]
[1730357533838,14.3744,173.92,173.91,16.04560135]
[1730357534857,14.3744,173.92,173.91,16.17109135]
[1730357536229,14.3744,173.92,173.91,16.39658135]
[1730357536438,28.742,173.97,173.92,0.12549]
[1730357536641,28.742,173.97,173.96,10.29550135]
[1730357537557,28.742,173.97,173.96,16.16939135]
[1730357539443,28.742,173.97,173.95,10.29550135]
[1730357539649,28.742,173.97,173.93,10.29550135]
[1730357541047,39.03750135,173.97,173.92,5.7496]
[1730357541251,10.29550135,173.96,173.92,5.7496]
[1730357542058,10.29550135,173.96,173.92,20.124]
[1730357542460,10.29550135,173.94,173.89,16.04590135]
[1730357542765,10.29550135,173.93,173.89,5.7504]
[1730357542970,10.29550135,173.92,173.88,20.37542299]
[1730357543464,10.29550135,173.94,173.88,36.42192434]
[1730357545468,10.29550135,173.93,173.88,36.42192434]
[1730357545853,10.29550135,173.91,173.88,5.99832299]
[1730357546269,10.29550135,173.91,173.86,5.7514]
[1730357546968,10.29550135,173.91,173.86,20.1307]
[1730357547376,10.29550135,173.91,173.86,0.12549]
[1730357547555,10.29550135,173.87,173.85,5.99710973]
[1730357547897,16.629,173.89,173.82,5.7529]
[1730357547898,10.29550135,173.86,173.82,20.1354]
[1730357548062,10.29550135,173.86,173.82,26.1344866]
[1730357548375,10.29550135,173.87,173.82,36.42998795]
[1730357548962,10.29550135,173.86,173.82,26.1344866]
[1730357549160,16.04690135,173.87,173.82,36.42998795]
[1730357553465,10.29550135,173.86,173.82,26.1344866]
[1730357558583,16.04690135,173.87,173.82,36.42998795]
[1730357558778,5.7514,173.87,173.82,5.9990866]
[1730357559094,5.7514,173.87,173.85,10.29550135]
[1730357560592,5.7514,173.87,173.85,16.04750135]
[1730357561798,10.29550135,173.86,173.83,26.13471491]
[1730357562182,16.04690135,173.87,173.83,26.13471491]
[1730357562692,5.7514,173.87,173.83,36.43021626]
[1730357564682,16.04690135,173.87,173.83,6.00031491]
[1730357565093,16.04690135,173.87,173.83,11.75301491]
[1730357569384,5.7514,173.87,173.84,10.29550135]
[1730357570283,5.7514,173.87,173.83,26.13108277]
[1730357570481,16.04690135,173.87,173.83,26.13108277]
[1730357572494,16.04690135,173.87,173.83,5.99658277]
[1730357573000,10.29550135,173.85,173.83,5.99658277]
[1730357573206,10.29550135,173.86,173.83,5.99658277]
[1730357573577,10.29550135,173.85,173.81,0.5945578]
[1730357574188,10.29550135,173.86,173.81,0.5945578]
[1730357574396,10.29550135,173.86,173.81,16.64335915]
[1730357575001,10.29550135,173.86,173.81,6.3478578]
[1730357576687,10.29550135,173.84,173.81,6.3478578]
[1730357577208,10.29550135,173.84,173.81,0.5945578]
[1730357577401,10.29550135,173.83,173.81,0.5945578]
[1730357578507,10.29550135,173.82,173.81,0.5945578]
[1730357579899,16.04820135,173.83,173.81,0.5945578]
[1730357580610,10.29550135,173.82,173.81,0.5945578]
[1730357582003,16.04820135,173.83,173.81,0.5945578]
[1730357582704,5.7527,173.83,173.81,6.3476578]
[1730357584692,5.7527,173.83,173.82,10.29550135]
[1730357585697,5.7527,173.83,173.82,5.753]
[1730357587386,5.7527,173.83,173.81,10.89005915]
[1730357587591,5.7527,173.83,173.81,0.5945578]
[1730357588191,5.7527,173.83,173.81,6.3476578]
[1730357588610,5.7527,173.83,173.81,31.02665915]
[1730357588809,10.29550135,173.87,173.82,10.29550135]
[1730357590595,10.29550135,173.87,173.83,5.7527]
[1730357592006,10.29550135,173.88,173.83,5.7527]
[1730357593420,16.04660135,173.88,173.83,5.7527]
[1730357595426,10.29550135,173.86,173.81,25.27355915]
[1730357595632,10.29550135,173.86,173.81,31.02675915]
[1730357596320,10.29550135,173.85,173.81,20.7312578]
[1730357597201,10.29550135,173.86,173.81,31.02675915]
[1730357597598,16.04700135,173.87,173.81,31.02675915]
[1730357600708,5.7515,173.87,173.82,10.29550135]
[1730357601025,5.7515,173.87,173.83,24.67730135]
[1730357602220,5.7515,173.87,173.83,30.43000135]
[1730357603510,5.7515,173.87,173.83,14.3818]
[1730357604610,16.04700135,173.87,173.83,14.3818]
[1730357605420,10.29550135,173.86,173.82,5.753]
[1730357606531,16.04700135,173.87,173.82,16.04850135]
[1730357607834,16.04700135,173.87,173.83,10.29550135]
[1730357607835,5.7515,173.87,173.83,10.29550135]
[1730357609034,5.7515,173.87,173.83,16.04800135]
[1730357609614,5.7515,173.87,173.83,30.42980135]
[1730357611843,5.7515,173.87,173.83,14.3818]
[1730357612626,16.04700135,173.87,173.83,14.3818]
[1730357618743,10.29550135,173.86,173.82,5.753]
[1730357618951,10.29550135,173.85,173.82,5.753]
[1730357619922,10.29550135,173.86,173.82,5.753]
[1730357620453,10.29550135,173.86,173.81,16.88948134]
[1730357620622,10.29550135,173.86,173.81,22.64258134]
[1730357622348,10.29550135,173.86,173.81,16.88948134]
[1730357623542,10.29550135,173.85,173.81,16.88948134]
[1730357623848,10.29550135,173.84,173.81,0.5945578]
[1730357625552,16.04760135,173.85,173.81,0.5945578]
[1730357626946,5.7521,173.85,173.81,10.89005915]
[1730357627253,5.7521,173.85,173.82,10.29550135]
[1730357631067,5.7521,173.85,173.84,10.29550135]
[1730357631761,5.7521,173.85,173.83,10.29550135]
[1730357632365,5.7521,173.85,173.83,16.04820135]
[1730357632664,5.7521,173.85,173.83,10.29550135]
[1730357637369,5.7521,173.85,173.84,10.29550135]
[1730357638165,5.7521,173.85,173.83,24.67730135]
[1730357639570,5.7521,173.85,173.83,30.43000135]
[1730357640560,5.7521,173.85,173.83,24.67730135]
[1730357640948,5.7521,173.85,173.83,30.43000135]
[1730357644258,5.7521,173.85,173.83,20.1345]
[1730357645349,5.7521,173.85,173.83,30.43000135]
[1730357648054,5.7521,173.85,173.83,20.1345]
[1730357648370,5.7521,173.85,173.83,30.43000135]
[1730357648879,5.7521,173.85,173.83,20.1345]
[1730357649884,5.7521,173.85,173.83,30.43000135]
[1730357652257,5.7521,173.85,173.83,20.1345]
[1730357653156,16.04760135,173.85,173.81,0.5945578]
[1730357656880,5.7521,173.85,173.81,0.5945578]
[1730357658683,5.7521,173.85,173.81,6.3478578]
[1730357659577,16.04760135,173.85,173.81,6.3478578]
[1730357662189,10.29550135,173.84,173.81,6.3478578]
[1730357663375,10.29550135,173.83,173.81,0.5945578]
[1730357664092,10.29550135,173.82,173.81,0.5945578]
[1730357669705,16.04850135,173.82,173.81,0.5945578]
[1730357682379,10.29550135,173.82,173.81,0.5945578]